bitfinex/quotes_ETHUSD_20260113
["timestamp","ask_amount","ask_price","bid_price","bid_amount"]
[1768270382976,0.94912567,3101.7,3101.0,0.67027658]
[1768270383557,0.03594736,3101.9,3101.0,0.67027658]
[1768270383746,3.25981149,3101.9,3101.0,1.65357391]
[1768270383949,3.25981149,3101.9,3101.1,3.22466221]
[1768270384147,3.25981149,3101.9,3101.2,0.98329733]
[1768270386061,3.25981149,3101.9,3101.3,0.90945794]
[1768270386370,0.253,3102.0,3101.2,3.2245531]
[1768270386371,0.253,3102.0,3101.5,0.90945794]
[1768270386572,0.253,3102.0,3101.4,0.0322435]
[1768270386573,3.22331098,3102.4,3101.6,0.03224142]
[1768270386759,0.30148657,3102.3,3101.5,0.90945794]
[1768270387076,0.30148657,3102.2,3101.3,1.16245794]
[1768270387254,6.69962196,3102.4,3101.3,1.16245794]
[1768270387462,3.22351879,3102.2,3101.4,0.90945794]
[1768270387661,0.67485064,3102.1,3101.4,0.90945794]
[1768270389175,0.67485064,3102.1,3101.6,0.001]
[1768270389478,3.90050991,3102.1,3101.6,0.001]
[1768270390196,0.06121726,3101.9,3100.9,4.1342666]
[1768270390482,0.3015858,3101.8,3100.9,4.1342666]
[1768270390874,0.3015858,3101.8,3100.9,0.90945794]
[1768270391083,0.06121726,3101.7,3100.7,0.90945794]
[1768270391271,0.30165884,3101.6,3100.7,0.90945794]
[1768270391472,6.44828474,3101.6,3100.7,3.22507252]
[1768270391665,0.6509502,3101.5,3100.7,4.13453046]
[1768270392696,0.6509502,3101.5,3100.8,0.90945794]
[1768270393675,0.6509502,3101.5,3100.9,0.98779651]
[1768270393877,3.47708166,3101.7,3100.9,0.95554781]
[1768270394071,0.30170915,3101.6,3100.9,0.95554781]
[1768270394385,3.47708166,3101.7,3100.9,0.95554781]
[1768270394556,0.30172077,3101.6,3100.9,0.95554781]
[1768270394760,3.47708166,3101.7,3100.9,0.95554781]
[1768270394967,0.30172073,3101.6,3100.9,0.95554781]
[1768270395192,4.14718407,3101.7,3100.9,0.95554781]
[1768270395379,0.3016958,3101.6,3100.9,0.95554781]
[1768270395564,4.14718407,3101.7,3101.0,0.95554781]
[1768270395893,0.30173285,3101.6,3101.2,0.95554781]
[1768270396096,4.14718407,3101.7,3101.2,0.95554781]
[1768270396297,0.71645104,3101.6,3101.2,0.95554781]
[1768270396462,0.41471841,3101.6,3101.2,0.95554781]
[1768270399306,0.67010241,3101.7,3101.2,0.95554781]
[1768270399509,0.3016349,3101.6,3100.9,0.95554781]
[1768270399707,6.44786896,3101.8,3100.9,0.95554781]
[1768270399866,0.30163719,3101.7,3100.9,0.95554781]
[1768270400203,0.30163719,3101.6,3100.9,0.95554781]
[1768270400401,6.44786896,3101.8,3100.9,0.95554781]
[1768270400577,0.97171482,3101.7,3100.9,0.95554781]
[1768270400903,0.30162792,3101.6,3100.9,0.95554781]
[1768270401066,0.73130416,3101.7,3100.9,0.95554781]
[1768270401399,3.22424633,3101.5,3100.9,0.95554781]
[1768270402897,3.22419027,3101.6,3100.9,0.95554781]
[1768270403098,3.89416204,3101.7,3101.0,0.95554781]
[1768270403403,0.30161996,3101.6,3101.1,0.95554781]
[1768270403581,3.2240493,3101.7,3101.1,0.95554781]
[1768270403768,0.3016264,3101.6,3101.1,0.95554781]
[1768270403971,3.2240493,3101.7,3101.1,0.95554781]
[1768270404195,0.3016265,3101.6,3101.1,0.95554781]
[1768270404509,3.2240493,3101.7,3101.1,0.95554781]
[1768270404704,0.30162455,3101.6,3101.1,0.95554781]
[1768270405008,3.2240493,3101.7,3101.1,0.95554781]
[1768270405171,0.30160258,3101.6,3101.1,0.95554781]
[1768270405371,3.2240493,3101.7,3101.1,0.95554781]
[1768270405598,0.30161744,3101.6,3101.1,0.95554781]
[1768270405906,3.2240493,3101.7,3101.1,0.95554781]
[1768270406109,0.30161765,3101.6,3101.1,0.95554781]
[1768270406310,3.2240493,3101.7,3101.1,0.95554781]
[1768270406498,0.3016404,3101.6,3101.1,0.95554781]
[1768270406795,3.2240493,3101.7,3101.1,0.95554781]
[1768270406985,0.30162401,3101.6,3101.1,0.95554781]
[1768270407305,3.2240493,3101.7,3101.1,0.95554781]
[1768270407505,0.30164435,3101.6,3101.1,0.95554781]
[1768270407710,3.22395317,3101.8,3101.1,0.95554781]
[1768270407918,0.64934015,3101.7,3101.1,0.95554781]
[1768270408117,0.30164483,3101.6,3101.1,0.95554781]
[1768270408974,3.22395317,3101.8,3101.1,0.95554781]
[1768270409306,0.30167759,3101.7,3101.1,0.95554781]
[1768270409508,0.30167759,3101.6,3101.1,0.95554781]
[1768270409679,3.22395317,3101.8,3101.1,0.95554781]
[1768270409874,0.30172044,3101.7,3101.1,0.95554781]
[1768270410205,0.30172044,3101.6,3101.1,0.95554781]
[1768270410409,3.22395317,3101.8,3101.0,3.22473927]
[1768270410580,0.30172928,3101.7,3101.0,3.22473927]
[1768270410780,3.22395317,3101.8,3100.9,3.22487019]
[1768270410979,0.30172954,3101.7,3100.9,3.96863161]
[1768270411181,0.30184777,3101.6,3100.9,3.96863161]
[1768270411402,3.22395317,3101.8,3101.0,3.74416698]
[1768270411608,0.30190202,3101.7,3101.0,3.74416698]
[1768270411906,0.30190202,3101.6,3101.0,3.74416698]
[1768270412101,0.30190202,3101.6,3101.0,4.83794148]
[1768270412306,0.30190202,3101.6,3101.0,8.06267788]
[1768270413107,0.002,3102.1,3101.2,3.74416698]
[1768270413294,0.30192874,3102.0,3101.5,0.95554781]
[1768270413529,0.002,3102.1,3101.6,0.95554781]
[1768270414396,0.002,3102.1,3101.6,4.17968133]
[1768270414579,0.002,3102.1,3101.7,0.9708388]
[1768270421085,0.002,3102.1,3101.6,3.22409966]
[1768270421308,0.002,3102.1,3101.6,0.9708388]
[1768270421503,0.002,3102.1,3101.7,1.43733995]
[1768270422514,0.002,3102.1,3101.8,0.9708388]
[1768270428716,0.002,3102.1,3101.9,0.9708388]
[1768270436524,0.00281826,3102.5,3102.4,0.9708388]
[1768270437089,0.002,3102.7,3102.5,0.9708388]
[1768270437327,0.002,3102.7,3102.5,4.71500578]
[1768270437716,0.002,3102.7,3102.5,3.74416698]
[1768270438394,0.002,3102.7,3102.3,3.74416698]
[1768270438595,0.002,3102.8,3102.5,3.74416698]
[1768270439216,0.002,3102.9,3102.5,3.74416698]
[1768270440439,0.255,3103.0,3102.7,3.74416698]
[1768270440800,0.002,3103.0,3102.7,3.74416698]
[1768270441304,0.002,3103.0,3102.4,6.96741459]
[1768270441630,0.002,3103.0,3102.5,0.73418313]
[1768270442014,0.002,3103.0,3102.6,0.9708388]
[1768270444617,0.002,3103.0,3102.7,0.95994073]
[1768270449032,0.002,3103.0,3102.4,0.95994073]
[1768270449841,3.22279158,3102.9,3102.2,0.95994073]
[1768270450036,3.22279158,3102.9,3101.9,3.47681113]
[1768270450037,4.44106284,3102.8,3102.0,0.95994073]
[1768270450244,0.69689586,3102.8,3101.9,3.22377527]
[1768270452942,3.22299932,3102.7,3101.8,3.22393448]
[1768270453142,3.22299932,3102.7,3101.9,0.95994073]
[1768270453344,3.22299932,3102.7,3102.0,0.95994073]
[1768270457942,3.22299932,3102.7,3101.8,0.98507515]
[1768270457943,10.19016562,3102.7,3101.8,0.98507515]
[1768270460856,10.19016562,3102.7,3101.7,3.22402951]
[1768270460857,10.19016562,3102.7,3102.1,0.001]
[1768270461054,10.19016562,3102.7,3102.1,0.98607515]
[1768270461055,3.22299932,3102.7,3102.1,0.98607515]
[1768270462028,3.22279158,3102.9,3102.1,0.98607515]
[1768270462229,0.55454561,3102.8,3102.1,0.98607515]
[1768270462540,0.30154561,3102.7,3102.1,0.98607515]
[1768270462742,3.22279158,3102.9,3102.1,0.98607515]
[1768270462942,0.30157371,3102.8,3102.1,0.98607515]
[1768270463143,0.30157371,3102.7,3102.2,0.98507515]
[1768270463342,3.22279158,3102.9,3102.2,0.98507515]
[1768270463692,0.002,3103.0,3102.8,3.74416698]
[1768270463827,0.002,3103.0,3102.9,0.97350187]
[1768270469670,0.002,3103.0,3102.5,3.22318761]
[1768270469827,0.002,3103.0,3102.6,1.68181061]
[1768270470147,0.002,3103.0,3102.7,0.98507515]
[1768270477637,0.002,3103.0,3102.7,1.01730514]
[1768270477837,0.002,3103.0,3102.7,0.98507515]
[1768270481168,0.002,3103.0,3102.6,0.69673546]
[1768270481352,0.01357328,3103.0,3102.5,3.22317818]
[1768270481553,0.002,3103.0,3102.5,3.22317818]
[1768270481851,0.002,3103.0,3102.5,4.17346815]
[1768270484355,0.002,3103.0,3102.5,0.95028997]
[1768270485880,0.002,3103.0,3102.6,0.95028997]
[1768270486179,0.002,3103.0,3102.7,0.95028997]
[1768270498571,0.30222636,3102.9,3102.5,0.95028997]
[1768270498891,0.002,3103.0,3102.5,0.95028997]
[1768270498892,0.30223167,3102.8,3102.5,0.95028997]
[1768270499098,0.01357328,3103.0,3102.1,0.001]
[1768270499305,0.91636163,3102.8,3102.1,1.341]
[1768270499501,0.30224398,3102.7,3102.1,0.001]
[1768270499676,0.30224398,3102.6,3102.1,0.001]
[1768270499878,0.91636163,3102.8,3102.1,0.001]
[1768270500076,0.30211138,3102.7,3102.1,0.001]
[1768270500295,0.30211138,3102.6,3102.1,0.95128997]
[1768270500474,4.13932966,3102.8,3102.1,0.95128997]
[1768270500675,0.30210746,3102.7,3102.1,0.95128997]
[1768270501001,3.22296803,3102.8,3102.1,0.95128997]
[1768270501188,0.3021065,3102.7,3102.1,0.95128997]
[1768270501392,3.22296803,3102.8,3102.1,0.95128997]
[1768270501690,0.30201658,3102.7,3102.1,0.95128997]
[1768270501890,3.22296803,3102.8,3102.1,0.95128997]
[1768270502088,0.30201549,3102.7,3102.1,0.95128997]
[1768270502289,0.002,3103.0,3102.2,0.98252515]
[1768270502490,0.002,3103.0,3102.4,0.95028997]
[1768270502670,0.002,3103.0,3102.6,0.95028997]
[1768270502865,0.002,3103.0,3102.8,0.95028997]
[1768270504386,0.002,3103.0,3102.6,0.95028997]
[1768270507102,0.002,3103.0,3102.6,4.17338657]
[1768270507284,0.002,3103.0,3102.6,0.95028997]
[1768270507934,0.002,3103.0,3102.7,0.93932974]
[1768270508428,0.002,3103.0,3102.9,0.001]
[1768270509631,0.002,3103.3,3102.9,0.001]
[1768270509632,0.96082107,3103.2,3102.9,0.001]
[1768270509938,0.96082107,3103.2,3102.9,0.03322791]
[1768270511437,0.002,3103.2,3102.9,0.90809975]
[1768270511732,0.002,3103.5,3103.1,0.90709975]
[1768270514827,0.002,3103.5,3103.2,0.94460385]
[1768270516341,0.002,3103.5,3103.3,0.94460385]
[1768270516806,0.002,3103.7,3103.3,0.94460385]
[1768270517007,0.002,3103.8,3103.3,0.94460385]
[1768270517203,0.002,3103.8,3103.5,0.94460385]
[1768270517626,0.002,3103.9,3103.6,0.94460385]
[1768270518921,0.002,3103.9,3103.6,0.253]
[1768270520725,0.002,3103.9,3103.6,1.19760385]
[1768270525545,0.002,3104.3,3103.8,0.94460385]
[1768270525720,0.002,3104.3,3103.9,0.46852768]
[1768270526320,0.002,3104.3,3103.9,1.41313153]
[1768270528033,0.002,3104.3,3103.9,4.63487449]
[1768270528862,0.002,3104.3,3103.9,1.41313153]
[1768270529040,0.002,3104.3,3103.9,0.46852768]
[1768270529245,3.22333814,3104.3,3103.8,0.253]
[1768270529646,0.002,3104.3,3103.8,0.253]
[1768270530154,0.96386325,3104.3,3103.5,4.19893615]
[1768270530344,0.96386325,3104.3,3103.5,1.19760385]
[1768270530726,0.96386325,3104.3,3103.5,4.41974012]
[1768270530926,0.96386325,3104.3,3103.6,0.48686691]
[1768270531330,4.18524897,3104.3,3103.6,0.48686691]
[1768270531831,0.002,3104.0,3103.6,0.48686691]
[1768270532932,0.002,3104.0,3103.4,0.41670626]
[1768270533125,0.002,3104.0,3103.4,0.66970626]
[1768270533353,0.002,3104.0,3103.4,3.89195842]
[1768270533558,0.002,3104.0,3103.4,4.83656227]
[1768270533731,0.002,3104.0,3103.5,0.94460385]
[1768270533944,0.002,3104.0,3103.6,0.48365623]
[1768270534259,0.002,3104.0,3103.6,1.42826008]
[1768270534579,0.002,3104.0,3103.7,4.68006994]
[1768270536054,0.002,3104.0,3103.8,0.94167731]
[1768270536740,0.002,3104.3,3103.8,0.94167731]
[1768270537068,0.002,3104.3,3103.9,0.46800699]
[1768270538049,0.002,3104.3,3103.9,1.4096843]
[1768270538961,0.002,3104.3,3103.9,0.46800699]
[1768270539171,0.002,3104.3,3103.7,0.94167731]
[1768270539364,0.96386325,3104.3,3103.6,0.48365623]
[1768270539567,0.96386325,3104.3,3103.6,0.253]
[1768270540056,0.96186325,3104.1,3103.2,0.94167731]
[1768270540255,0.96186325,3104.1,3103.3,1.34]
[1768270540457,0.96186325,3104.1,3103.4,0.22816773]
[1768270542049,4.18351273,3104.0,3103.4,0.22816773]
[1768270543968,4.18551273,3104.0,3103.7,0.001]
[1768270550881,0.002,3104.0,3103.7,0.001]
[1768270551084,4.18553796,3104.0,3103.7,0.001]
[1768270554485,0.002,3104.0,3103.7,0.001]
[1768270560394,0.96386325,3104.0,3103.7,0.001]
[1768270560595,1.70255871,3103.9,3103.7,0.001]
[1768270561016,1.70255871,3103.9,3103.2,1.19467731]
[1768270561299,0.96186325,3103.9,3103.2,1.19367732]
[1768270562003,0.002,3104.0,3103.3,0.94167731]
[1768270562175,0.30191773,3103.9,3103.3,0.94167731]
[1768270562374,0.002,3104.0,3103.3,0.94167731]
[1768270562571,0.30188989,3103.9,3103.3,0.94167731]
[1768270562772,0.002,3104.0,3103.3,0.94167731]
[1768270563183,0.002,3104.0,3103.4,0.94167731]
[1768270567717,0.002,3104.0,3103.7,0.001]
[1768270568218,3.5237861,3103.9,3103.7,0.001]
[1768270568397,3.22183053,3103.9,3103.7,0.001]
[1768270570411,3.22364948,3104.0,3103.7,0.001]
[1768270570611,0.30195927,3103.9,3103.7,0.001]
[1768270570923,8.17672478,3104.0,3103.3,0.253]
[1768270571126,0.30195946,3103.9,3103.2,1.16755872]
[1768270571292,8.17672478,3104.0,3103.2,1.16655873]
[1768270571492,1.11962059,3103.9,3103.2,1.16655873]
[1768270571721,0.81767248,3103.9,3103.2,1.16655873]
[1768270572219,0.81767248,3103.9,3103.2,0.91355873]
[1768270572421,4.03951451,3103.9,3103.3,0.91455872]
[1768270573225,3.22184203,3103.9,3103.3,0.91455872]
[1768270573529,3.22369345,3104.0,3103.3,0.91455872]
[1768270573827,0.301931,3103.9,3103.3,0.91455872]
[1768270574123,3.22369345,3104.0,3103.3,0.91455872]
[1768270574329,0.30192842,3103.9,3103.4,0.98508784]
[1768270574506,0.002,3104.0,3103.5,0.98508784]
[1768270576123,0.002,3104.0,3103.6,0.98508784]
[1768270576844,0.002,3104.0,3103.7,0.98508784]
[1768270579424,0.002,3104.0,3103.4,1.07288364]
[1768270579923,0.002,3104.0,3103.5,0.98508784]
[1768270580092,0.002,3104.0,3103.5,1.19088499]
[1768270584031,0.002,3104.0,3103.6,0.98508784]
[1768270587130,0.93219076,3104.0,3103.5,0.20579715]
[1768270587330,0.93219076,3104.0,3103.4,0.253]
[1768270588313,0.002,3104.0,3103.4,0.253]
[1768270588513,0.002,3104.0,3103.5,0.98508784]
[1768270590737,0.002,3103.7,3103.5,0.98508784]
[1768270590938,0.002,3103.7,3103.6,0.42073339]
[1768270592642,0.002,3103.7,3103.6,1.40582123]
[1768270593644,0.002,3103.7,3103.6,4.62788592]
[1768270595336,0.002,3103.7,3103.6,1.40582123]
[1768270596148,0.002,3103.7,3103.6,0.42073339]
[1768270596841,0.002,3103.7,3103.6,3.64279808]
[1768270597046,0.002,3103.7,3103.6,0.42073339]
[1768270597745,0.002,3103.7,3103.6,3.64279808]
[1768270598866,0.002,3104.0,3103.6,3.64279808]
[1768270599323,0.002,3104.0,3103.6,0.42073339]
[1768270599747,0.002,3104.0,3103.6,3.64279352]
[1768270599923,0.002,3104.0,3103.6,4.55233454]
[1768270601957,0.002,3104.0,3103.7,0.90954102]
[1768270602455,0.002,3104.0,3103.6,3.64279352]
[1768270602826,0.002,3104.0,3103.6,4.55233454]
[1768270606571,0.002,3104.0,3103.6,4.13160115]
[1768270607560,0.002,3104.0,3103.4,4.13178305]
[1768270607925,0.002,3104.0,3103.4,7.35405539]
[1768270608129,0.002,3104.0,3103.5,0.90954102]
[1768270610081,0.002,3104.0,3103.6,3.22206469]
[1768270610936,0.002,3104.0,3103.7,0.90954102]
[1768270615868,0.002,3104.0,3103.6,3.22206469]
[1768270616040,0.002,3104.0,3103.5,0.90954102]
[1768270617452,0.002,3104.0,3103.5,1.67024679]
[1768270618362,0.002,3104.0,3103.5,4.8923278]
[1768270619673,0.002,3104.0,3103.6,0.90954102]
[1768270621344,0.002,3104.0,3103.5,3.98278678]
[1768270622671,0.002,3104.0,3103.5,3.22208101]
[1768270624860,0.002,3104.0,3103.5,4.13705843]
[1768270625578,0.002,3104.0,3103.6,0.91497742]
[1768270625752,0.002,3103.7,3103.6,4.13704211]
[1768270625947,0.002,3104.0,3103.6,3.22206469]
[1768270626850,0.002,3104.0,3103.5,4.1371021]
[1768270627550,0.002,3104.0,3103.5,4.89834917]
[1768270628485,0.002,3104.0,3103.5,3.98337175]
[1768270629187,0.002,3104.0,3103.5,4.89834917]
[1768270637499,0.002,3103.7,3103.5,4.89834917]
[1768270650479,0.002,3103.7,3103.5,3.98337175]
[1768270651405,0.002,3103.7,3103.5,0.76124707]
[1768270653304,0.002,3103.7,3103.5,3.98337724]
[1768270654119,0.002,3103.7,3103.6,0.39833772]
[1768270654322,0.002,3103.7,3103.6,1.29971035]
[1768270657523,0.002,3103.7,3103.6,0.39833772]
[1768270657691,0.002,3103.7,3103.5,0.76124707]
[1768270658221,0.002,3103.7,3103.5,3.98340119]
[1768270658422,0.002,3103.7,3103.5,0.76124707]
[1768270659099,0.002,3103.7,3103.3,3.22232641]
[1768270659309,0.002,3103.7,3103.3,3.47532641]
[1768270664324,0.002,3103.7,3103.3,4.39157682]
[1768270664526,0.002,3103.7,3103.4,0.91625041]
[1768270669140,0.002,3103.7,3103.2,0.91625041]
[1768270669429,0.002,3103.7,3103.2,4.39167201]
[1768270670925,0.002,3103.7,3103.2,0.253]
[1768270671106,0.94216316,3103.6,3102.9,0.001]
[1768270671308,0.94216316,3103.4,3102.9,1.341]
[1768270673412,0.94216316,3103.4,3102.9,0.001]
[1768270673613,0.94216316,3103.3,3102.9,0.001]
[1768270674735,3.22398617,3103.7,3103.1,4.65458572]
[1768270675038,0.30169916,3103.6,3103.1,4.65458572]
[1768270675337,3.22398617,3103.7,3103.1,0.91625041]
[1768270675532,3.98808652,3103.7,3103.1,0.91625041]
[1768270675832,0.30164572,3103.6,3103.1,0.91625041]
[1768270676005,3.98808652,3103.7,3102.9,7.87837113]
[1768270676205,0.30165005,3103.6,3102.9,7.87837113]
[1768270676440,3.98808652,3103.7,3102.9,7.87837113]
[1768270676734,1.14211403,3103.6,3102.9,7.87837113]
[1768270676949,4.06261826,3103.6,3102.9,0.91725041]
[1768270677240,0.94216316,3103.5,3102.9,0.001]
[1768270678930,4.16434748,3103.5,3102.9,0.001]
[1768270679312,0.94216316,3103.5,3102.9,0.001]
[1768270679519,1.44284024,3103.5,3102.9,0.001]
[1768270679824,0.94216316,3103.5,3102.9,0.001]
[1768270680648,0.94216316,3103.4,3102.9,0.001]
[1768270681622,4.16443932,3103.4,3102.9,0.001]
[1768270683736,4.16443932,3103.4,3103.2,0.001]
[1768270690549,3.22227616,3103.4,3103.2,0.001]
[1768270690744,3.22216851,3103.5,3103.2,0.001]
[1768270691043,0.74071013,3103.4,3103.2,0.001]
[1768270691745,1.70357337,3103.4,3103.2,0.001]
[1768270692246,0.96286324,3103.2,3102.9,0.001]
[1768270692445,0.96286324,3103.2,3102.9,1e-08]
[1768270692656,0.96286324,3102.9,3102.2,3.22346277]
[1768270692852,3.22272553,3103.0,3102.3,0.93234322]
[1768270693058,3.71804817,3103.1,3102.3,0.93234322]
[1768270693240,0.49541986,3103.1,3102.5,0.93234322]
[1768270694252,3.47541211,3103.3,3102.7,0.98814186]
[1768270694431,3.22241211,3103.3,3102.7,0.98814186]
[1768270697744,6.44482422,3103.3,3102.7,0.98814186]
[1768270698041,0.30148231,3103.2,3102.7,0.98814186]
[1768270698218,6.44482422,3103.3,3102.7,0.98814186]
[1768270698417,1.02010502,3103.2,3102.7,0.98814186]
[1768270698618,0.71855344,3103.2,3102.7,0.98814186]
[1768270700350,3.52428828,3103.1,3102.7,0.98814186]
[1768270700551,3.22259095,3103.1,3102.5,0.98814186]
[1768270702942,4.18369117,3103.1,3102.3,0.98814186]
[1768270703142,4.99616364,3103.1,3102.3,0.98814186]
[1768270703743,4.99616364,3103.1,3102.3,4.21154766]
[1768270703924,4.99616364,3103.1,3102.4,0.98814186]
[1768270704957,4.03506342,3103.1,3102.4,0.98814186]
[1768270705259,0.71855344,3103.2,3102.5,0.98814186]
[1768270705260,3.9410794,3103.2,3102.5,0.98814186]
[1768270705458,0.30171115,3103.1,3102.5,0.98814186]
[1768270705648,3.9410794,3103.2,3102.5,0.98814186]
[1768270705848,0.30171117,3103.1,3102.5,0.98814186]
[1768270706160,3.9410794,3103.2,3102.5,0.98814186]
[1768270706383,0.30171956,3103.1,3102.5,0.98814186]
[1768270706550,3.9410794,3103.2,3102.5,0.98814186]
[1768270706739,0.30171959,3103.1,3102.5,0.98814186]
[1768270706934,3.9410794,3103.2,3102.8,0.001]
[1768270707250,0.002,3102.9,3102.8,0.001]
[1768270719137,0.30395282,3102.9,3102.4,0.99821107]
[1768270719341,0.002,3102.9,3102.4,0.99821107]
[1768270720955,0.002,3102.9,3102.5,0.99821107]
[1768270723250,0.002,3102.9,3102.3,0.99821107]
[1768270727062,0.30219069,3102.8,3102.3,0.99821107]
[1768270727260,0.002,3102.9,3102.3,0.99821107]
[1768270727582,0.30219155,3102.8,3102.3,0.99821107]
[1768270727777,0.002,3102.9,3102.3,0.99821107]
[1768270727985,0.30219155,3102.8,3102.3,0.99821107]
[1768270728184,0.002,3102.9,3102.3,0.99821107]
[1768270728372,0.30218612,3102.8,3102.3,0.99821107]
[1768270728575,0.002,3102.9,3102.3,0.99821107]
[1768270728776,0.30218616,3102.8,3102.3,0.99821107]
[1768270728978,0.002,3102.9,3102.3,0.99821107]
[1768270729178,0.30218612,3102.8,3102.3,0.99821107]
[1768270729468,0.002,3102.9,3102.3,0.99821107]
[1768270729674,0.30218268,3102.8,3102.3,0.99821107]
[1768270729847,0.002,3102.9,3102.3,0.99821107]
[1768270730053,0.30218272,3102.8,3102.3,0.99821107]
[1768270730266,0.002,3102.9,3102.3,0.99821107]
[1768270730475,0.30218121,3102.8,3102.6,0.001]
[1768270730676,0.002,3102.9,3102.6,0.001]
[1768270730877,0.62465685,3102.8,3102.6,0.001]
[1768270731075,0.32247571,3102.8,3102.6,0.001]
[1768270732991,3.5453875,3102.8,3102.6,0.001]
[1768270733296,0.30218838,3102.7,3102.6,0.001]
[1768270734391,3.5453875,3102.8,3102.6,0.001]
[1768270734571,0.45018992,3102.7,3102.6,0.001]
[1768270739096,3.22482735,3102.9,3102.6,0.001]
[1768270739400,0.30208339,3102.8,3102.6,0.001]
[1768270739565,0.002,3102.9,3102.6,0.001]
[1768270739897,0.30208335,3102.8,3102.6,0.001]
[1768270740096,0.002,3102.9,3102.6,0.001]
[1768270740396,0.30208182,3102.8,3102.6,0.001]
[1768270740600,0.74218012,3102.9,3102.6,0.001]
[1768270740890,0.30208309,3102.8,3102.6,0.001]
[1768270741095,0.74218012,3102.9,3102.6,0.001]
[1768270741297,0.30208023,3102.8,3102.6,0.001]
[1768270741498,3.96499753,3102.9,3102.6,0.001]
[1768270741698,0.69857981,3102.8,3102.6,0.001]
[1768270741887,0.39649975,3102.8,3102.6,0.001]
[1768270744498,3.61946086,3102.8,3102.6,0.001]
[1768270745069,0.30209943,3102.7,3102.6,0.001]
[1768270750781,3.52509875,3102.7,3102.6,0.001]
[1768270750993,4.31375737,3102.7,3102.6,0.001]
[1768270753291,4.01165794,3102.7,3102.6,0.001]
[1768270753497,4.31382452,3102.7,3102.6,0.001]
[1768270754399,1.0908252,3102.7,3102.6,0.001]
[1768270755102,0.30216658,3102.7,3102.6,0.001]
[1768270756877,0.30216658,3102.7,3102.6,0.97737723]
[1768270759818,0.30220855,3102.8,3102.6,0.001]
[1768270760109,0.30220855,3102.7,3102.4,0.97637723]
[1768270760324,6.44769593,3102.9,3102.4,0.97637723]
[1768270760489,0.94699946,3102.8,3102.4,0.97637723]
[1768270760676,0.30222987,3102.7,3102.4,0.97637723]
[1768270760876,0.64476959,3102.8,3102.2,0.97637723]
[1768270761190,0.30222994,3102.7,3102.2,0.97637723]
[1768270761393,3.22302365,3102.7,3102.2,0.97637723]
[1768270761603,0.30224223,3102.6,3102.2,0.97637723]
[1768270761789,3.93228532,3102.7,3102.2,0.97637723]
[1768270762008,3.93228532,3102.7,3102.1,0.001]
[1768270762009,0.30224396,3102.6,3102.1,0.001]
[1768270762314,1.04799316,3102.5,3102.1,0.001]
[1768270762522,0.74575529,3102.5,3102.1,0.001]
[1768270763091,0.30225022,3102.4,3102.1,0.001]
[1768270763297,3.96904717,3102.5,3102.1,0.001]
[1768270763491,0.30217245,3102.4,3102.1,0.001]
[1768270763824,3.96904717,3102.5,3102.1,0.001]
[1768270764013,0.69907686,3102.4,3102.1,0.001]
[1768270764210,0.39690472,3102.4,3102.1,0.001]
[1768270765106,3.62022856,3102.4,3102.1,0.001]
[1768270767287,6.8435524,3102.4,3102.1,0.001]
[1768270767528,1.21120361,3102.3,3101.8,0.00163716]
[1768270767704,1.10748904,3102.2,3101.8,0.00163716]
[1768270768002,0.8054756,3102.2,3101.8,0.00163716]
[1768270769220,4.02906748,3102.2,3101.8,0.00163716]
[1768270770222,0.8054756,3102.2,3101.8,0.00163716]
[1768270770426,3.22344709,3102.3,3101.8,0.00163716]
[1768270770728,0.30177969,3102.2,3101.8,0.97801439]
[1768270770922,3.62024448,3102.4,3101.8,0.97801439]
[1768270771094,0.30177964,3102.3,3101.8,0.97801439]
[1768270771419,3.62024448,3102.4,3101.8,0.97801439]
[1768270771614,1.151568,3102.3,3101.8,0.97801439]
[1768270771814,0.84984022,3102.3,3101.8,0.97801439]
[1768270773633,3.22351879,3102.2,3101.8,0.97801439]
[1768270773961,3.22351879,3102.2,3101.8,0.00163716]
[1768270775026,7.38859406,3102.2,3101.8,0.00163716]
[1768270775226,2.06699448,3102.1,3101.4,0.96303156]
[1768270775429,1.76539991,3102.1,3101.4,0.96303156]
[1768270775634,3.22327758,3102.5,3101.2,0.001]
[1768270775635,0.002,3102.9,3102.2,0.96303156]
[1768270775927,0.30156614,3102.8,3102.0,0.96303156]
[1768270776134,0.30156614,3102.7,3102.0,0.96303156]
[1768270776294,0.30156614,3102.6,3102.1,0.96403156]
[1768270776497,0.30156614,3102.5,3102.1,0.96403156]
[1768270776697,0.94355648,3102.9,3102.1,0.96403156]
[1768270776932,1.06575591,3102.8,3102.1,0.96403156]
[1768270777136,0.30156272,3102.7,3102.1,0.96403156]
[1768270777329,0.76419319,3102.8,3102.1,0.96403156]
[1768270777330,0.30156272,3102.6,3102.1,0.96403156]
[1768270777537,0.30156272,3102.5,3102.1,0.96403156]
[1768270777835,3.2231032,3102.6,3102.1,0.96403156]
[1768270778133,0.30156971,3102.5,3102.1,0.96403156]
[1768270778334,3.2231032,3102.6,3102.1,0.96403156]
[1768270778537,0.30157386,3102.5,3102.1,0.96403156]
[1768270778830,3.2231032,3102.6,3102.1,0.96403156]
[1768270779040,0.30157386,3102.5,3102.1,0.96403156]
[1768270779247,6.4462064,3102.6,3102.1,0.96403156]
[1768270779540,0.3015873,3102.5,3102.1,0.96403156]
[1768270779841,4.03829881,3102.6,3102.1,0.96403156]
[1768270780012,0.30158727,3102.5,3102.1,0.96403156]
[1768270780208,3.2231032,3102.6,3102.1,0.96403156]
[1768270780539,0.30160199,3102.5,3102.1,0.96403156]
[1768270780705,3.2231032,3102.6,3102.1,0.96403156]
[1768270780906,0.30160204,3102.5,3102.1,0.96403156]
[1768270781127,3.2231032,3102.6,3102.1,0.96403156]
[1768270781348,0.30161824,3102.5,3102.1,0.96403156]
[1768270781548,3.2230207,3102.7,3102.1,0.96403156]
[1768270781748,0.30161821,3102.6,3102.1,0.96403156]
[1768270781931,0.30161821,3102.5,3102.1,0.96403156]
[1768270782135,7.55925589,3102.7,3102.1,0.96403156]
[1768270782339,0.30163693,3102.6,3102.1,0.96403156]
[1768270782546,0.30163693,3102.5,3102.1,0.96403156]
[1768270782723,4.33623519,3102.7,3102.1,0.96403156]
[1768270782925,0.30163679,3102.6,3102.1,0.96403156]
[1768270783124,0.30163679,3102.5,3102.1,0.96403156]